Cogmind - Beta 16 @@@ ROGUE MODE // 2026.01.14 @ 14:41:33 Player: DietSnapple Result: Destroyed by 7M-6JN(R) with Subdweller Laser Performance ------------- Evolutions (0) 0 Regions Visited (2) 400 Robots Destroyed (6) 30 Value Destroyed (140) 140 Prototype IDs (0) 0 Alien Tech Used (0) 0 Bonus (-8) -8 TOTAL SCORE: 562 Bonus ------- Friendly Fire -8 Cogmind --------- Core Integrity 0/250 Matter 275/300 Energy 124/125 System Corruption 0% Temperature Cool (6) Movement Treading (160) Location -10/Subcaves Parts ------- > --- POWER (1) -------- Light Ion Engine > --- PROPULSION (2) --- Light Treads Light Treads > --- UTILITY (2) ------ Small Storage Unit > --- WEAPON (2) ------- Light Assault Rifle > --- INVENTORY (8) ---- Wheel Compact Wheel Medium Laser Peak State ------------ > --- POWER ------------ Light Ion Engine > --- PROPULSION ------- Light Treads Light Treads > --- UTILITY ---------- Small Storage Unit Seismic Detector > --- WEAPON ----------- Assault Rifle Light Assault Rifle > --- INVENTORY -------- Light Ion Engine Wheel Compact Wheel Medium Laser [Rating: 7] Favorites ----------- Power Light Ion Engine Engine Light Ion Engine Propulsion Light Treads Treads Light Treads Utility Small Storage Unit Device Seismic Detector Storage Small Storage Unit Weapon Light Assault Rifle Ballistic Gun Light Assault Rifle Build | -11 -10 -10 ------- Run | Yrd Mat Sub Slots Evolved . | . . . Power . | . . . Propulsion . | . . . Utility . | . . . Weapon . | . . . Parts Attached 8 | 7 . 1 Power 2 | 1 . 1 Engine 2 | 1 . 1 Core . | . . . Reactor . | . . . Propulsion 2 | 2 . . Treads 2 | 2 . . Leg . | . . . Wheel . | . . . Hover . | . . . Flight . | . . . Utility 2 | 2 . . Device 1 | 1 . . Storage 1 | 1 . . Processor . | . . . Hackware . | . . . Protection . | . . . Artifact . | . . . Weapon 2 | 2 . . Energy Gun . | . . . Energy Cannon . | . . . Ballistic Gun 2 | 2 . . Ballistic Cannon . | . . . Launcher . | . . . Special Weapon . | . . . Impact Weapon . | . . . Slashing Weapon . | . . . Piercing Weapon . | . . . Special Melee Weapon . | . . . Unidentified Prototypes . | . . . Parts Lost 3 | . . 3 Power 1 | . . 1 Propulsion . | . . . Utility 1 | . . 1 Weapon 1 | . . 1 Highest Loss Streak 2 | . . 2 To Critical Strikes . | . . . Average Backups 3 | 2 4 3 Power . | . 1 . Propulsion 1 | 1 2 2 Utility . | . . . Weapon . | . 1 1 Tool/Special . | . . . Unused Backups 3 | . . 3 Power . | . . . Propulsion 2 | . . 2 Utility . | . . . Weapon 1 | . . 1 Tool/Special . | . . . Average Slot Usage (%) 92 | . 100 90 Engine 12 | . 14 12 Treads 28 | . 28 28 Device 8 | . 14 6 Storage 14 | . 14 14 Ballistic Gun 28 | . 28 28 Peak Build Rating 7 | 7 7 7 Average Rating 6 | 5 7 6 On Entrance 4 | . 7 7 Avg Prop Armor Cover (%) . | . . . Naked Turns . | . . . Heaviest Build 12 | 12 12 12 Greatest Support 40 | 40 40 40 Greatest Overweight (x) . | . . . Average Overweight (x) . | . . . Largest Inventory Capacity 8 | 8 8 8 Average Capacity 7 | 7 8 8 Most Carried 4 | 4 4 4 Average Carried 3 | 2 4 3 Final Capacity 8 | 8 8 8 Final Carried 4 | 4 4 3 Class Distribution -------------------- 100% | Mutant Dominant Class ---------------- Mutant | -10/Materials Mutant | -10/Subcaves Resources | -11 -10 -10 ----------- Run | Yrd Mat Sub Matter Collected 328 | 282 . 46 Remotely . | . . . Salvage Created 253 | 112 . 141 Parts 18 | 10 . 8 Haulers Intercepted . | . . . Recyclers Shooed 1 | 1 . . Parts Field Recycled . | . . . Retrieved Matter . | . . . Parts Self-Destructed 10 | . . 10 Prevented . | . . . Parts Restored . | . . . Kills | -11 -10 -10 ------- Run | Yrd Mat Sub Combat Hostiles Destroyed 3 | . . 3 Guns 3 | . . 3 Classes Destroyed 3 | 2 . 1 Tunneler 2 | 2 . . Recycler 1 | 1 . . Subdweller 3 | . . 3 Best Kill Streak 3 | 3 . 3 Combat Bots Only 3 | . . 3 Max Kills in Single Turn 2 | 2 . 1 Gunslinging . | . . . Exploded . | . . . Melee . | . . . Uniques/NPCs Destroyed . | . . . Combat | -11 -10 -10 -------- Run | Yrd Mat Sub Hostile Shots Fired 37 | . . 37 Missed 9 | . . 9 Hits 28 | . . 28 Projectile 28 | . . 28 Critical Strikes 1 | . . 1 Damage Taken 606 | . . 606 Core 259 | . . 259 Absorbed by Shields . | . . . Core Remaining (%) 100 | 100 . . Volleys Fired 25 | 3 . 22 Largest 2 | 2 . 2 Hottest 40 | 40 . 40 Shots Fired 46 | 6 . 40 Gun 46 | 6 . 40 Cannon . | . . . Launcher . | . . . Special . | . . . Kinetic 46 | 6 . 40 Thermal . | . . . Explosive . | . . . Electromagnetic . | . . . Robot Hit Streak 14 | 2 . 14 Robot Miss Streak 4 | 1 . 4 Penetration Max . | . . . Secondary Targets 2 | . . 2 Max Gunslinging Chain 1 | . . 1 Shots Hit Robots 30 | 3 . 27 Core Hits 11 | 3 . 8 Critical Kills . | . . . Critical Parts Destroyed . | . . . Critical Strikes . | . . . Melee Attacks . | . . . Impact . | . . . Slashing . | . . . Piercing . | . . . Sneak Attacks . | . . . Combat Hostiles . | . . . Follow-up Attacks . | . . . Damage Inflicted 324 | 49 . 275 Guns 324 | 49 . 275 Cannons . | . . . Explosions . | . . . Melee . | . . . Ramming . | . . . Kinetic 324 | 49 . 275 Thermal . | . . . Explosive . | . . . Electromagnetic . | . . . Impact . | . . . Slashing . | . . . Piercing . | . . . Highest Corruption . | . . . Average Corruption . | . . . Corruption Purged . | . . . Corruption Blocked . | . . . Overload Shots . | . . . Overflow Damage . | . . . Projectiles . | . . . Explosions . | . . . Melee . | . . . Knockbacks . | . . . Impact . | . . . Kinetic . | . . . Secondary . | . . . Self-Inflicted Damage . | . . . Shots . | . . . Rammed . | . . . Targets Rammed . | . . . Kicked . | . . . Crushed . | . . . Highest Temperature . | . . . Average Temperature . | . . . Received Heat Transfer 63 | . . 63 Siege Activations . | . . . Martial Activations . | . . . Shielding Activations . | . . . Robots Disrupted . | . . . Combat Hostiles . | . . . Robots Corrupted . | . . . Combat Hostiles . | . . . Parts Fried . | . . . Impact Corruptions . | . . . Robots Melted . | . . . Combat Hostiles . | . . . Parts Melted 1 | . . 1 Heat Transferred . | . . . Parts Sabotaged . | . . . Parts Stolen . | . . . Parts Stripped . | . . . Power Chain Reactions . | . . . Alert | -11 -10 -10 ------- Run | Yrd Mat Sub Maximum Alert Level . | . . . Low Security (%) 100 | 100 100 . Level 1 . | . . . Level 2 . | . . . Level 3 . | . . . Level 4 . | . . . Level 5 . | . . . High Security . | . . . Max Security . | . . . Peak Influence 10 | 10 . . Initial . | . . . Average . | 1 . . Influence Increases 15 | 15 . . Destroy 0b10 Robot/NC 15 | 15 . . Influence Decreases 15 | 15 . . Time Decay 15 | 15 . . Squads Dispatched . | . . . Investigation . | . . . Extermination . | . . . Reinforcement . | . . . Assault . | . . . Garrison . | . . . Intercept . | . . . Searches Triggered . | . . . Construction Impeded . | . . . Haulers Reinforced . | . . . Active Scanning Responses . | . . . Cargo Convoy Interrupts . | . . . Stealth | -11 -10 -10 --------- Run | Yrd Mat Sub Distress Signals . | . . . Communications Jammed . | . . . Distress Signals . | . . . Times Spotted 6 | . . 6 Peak Tracking Total 4 | . . 4 Tactical Retreats 1 | . . 1 Traps | -11 -10 -10 ------- Run | Yrd Mat Sub Traps Triggered . | . . . Indirectly . | . . . Trap Hack Attempts . | . . . Triggered . | . . . Disarmed . | . . . Reprogrammed . | . . . Reused . | . . . Traps Extracted . | . . . Installed . | . . . Triggered . | . . . Machines | -11 -10 -10 ---------- Run | Yrd Mat Sub Machines Disabled . | . . . Max in Single Turn . | . . . Machines Repaired . | . . . Machines Dismantled . | . . . Machines Sabotaged . | . . . Overloaded Fab Kills . | . . . Hacking | -11 -10 -10 --------- Run | Yrd Mat Sub Machines Accessed . | . . . Terminals . | . . . Fabricators . | . . . Repair Stations . | . . . Recycling Units . | . . . Scanalyzers . | . . . Garrison Access . | . . . Total Hacks . | . . . Successful . | . . . Failed . | . . . Catastrophic . | . . . Database Lockouts . | . . . Manual . | . . . Terminals . | . . . Fabricators . | . . . Repair Stations . | . . . Recycling Units . | . . . Scanalyzers . | . . . Garrison Access . | . . . Terminal Hacks . | . . . Fabricator Hacks . | . . . Repair Station Hacks . | . . . Recycling Unit Hacks . | . . . Scanalyzer . | . . . Garrison Access Hacks . | . . . Unauthorized Hacks . | . . . Terminals . | . . . Fabricators . | . . . Repair Stations . | . . . Recycling Units . | . . . Scanalyzers . | . . . Garrison Access . | . . . Data Cores Recovered . | . . . Used . | . . . Hacking Detections . | . . . Full Trace Events . | . . . Feedback Events . | . . . Feedback Blocked . | . . . Robot Schematics Acquired . | . . . Robots Built . | . . . Authchips . | . . . Time . | . . . Total Robot Build Rating . | . . . Part Schematics Acquired . | . . . Parts Built . | . . . Authchips . | . . . Time . | . . . Total Part Build Rating . | . . . Part Studies Acquired . | . . . Parts Repaired . | . . . Time . | . . . Parts Recycled . | . . . Recycled Matter . | . . . Retrieved Matter . | . . . Retrieved Components . | . . . Parts Scanalyzed . | . . . Part Schematics Acquired . | . . . Parts Damaged . | . . . Bothacking | -11 -10 -10 ------------ Run | Yrd Mat Sub Used RIF Installer . | . . . Robots Hacked . | . . . Non-combat . | . . . Combat . | . . . Robot Hacks Applied . | . . . Relay Couplers Released . | . . . Fabnet Peak Effective % . | . . . Robots Rewired . | . . . Allies Hacked . | . . . Hacks Repelled . | . . . Allies | -11 -10 -10 -------- Run | Yrd Mat Sub Total Allies . | . . . Largest Group . | . . . Highest-Rated Group . | . . . Highest-Rated Ally . | . . . Total Orders . | . . . Ally Attacks . | . . . Total Damage . | . . . Kills . | . . . Allies Corrupted . | . . . Allies Melted . | . . . Intel | -11 -10 -10 ------- Run | Yrd Mat Sub Active Infowar (turns) 221 | 44 58 119 Seismic 221 | 44 58 119 Robot Analysis Total . | . . . Derelict Logs Recovered . | . . . Drone Launches . | . . . Drone Recoveries . | . . . Exploration | -11 -10 -10 ------------- Run | Yrd Mat Sub Turns Passed 448 | 115 58 275 Spaces Moved 221 | 65 37 119 Core 10 | 10 . . Treads 211 | 55 37 119 Legs . | . . . Wheels . | . . . Hover . | . . . Flight . | . . . Fastest Speed 50 | 50 160 160 Average Speed 155 | 143 160 160 Slowest Speed 160 | 160 160 160 Overloaded Moves . | . . . Propulsion Burnouts . | . . . Robots Hopped . | . . . Potential Cave-ins . | . . . Cave-ins Triggered . | . . . Exploration Rate (%) 8 | 6 7 11 Regions Visited 2 Branch Regions 1 Pre-discovered Areas 1 | . . 1 Known Exits Taken . | . . . Unknown Exits Taken 2 | 1 1 . Scrap Searched . | . . . Spaces Dug . | . . . Terrain Destroyed . | . . . Melee . | . . . Projectile . | . . . AOE . | . . . Terrain Rammed . | . . . Walls Destroyed . | . . . Machines Disabled . | . . . Actions | -11 -10 -10 --------- Run | Yrd Mat Sub Total 284 | 79 36 169 Wait 27 | . . 27 Move 219 | 64 36 119 Hop . | . . . Pick Up 5 | 5 . . Fast Attach 6 | 6 . . Attach 2 | 1 . 1 Detach . | . . . Swap . | . . . Drop . | . . . Fire 25 | 3 . 22 Melee . | . . . Ram . | . . . Kick . | . . . Crush . | . . . Escape Stasis . | . . . Rewire . | . . . Trap . | . . . Miscellaneous . | . . . Route ------- -11/Scrapyard -10/Materials -10/Subcaves History --------- Turn | Location | Event 4 | -11/Scrapyard | Discovered new exit (range 16) 116 | -11/Scrapyard | Entered Materials 117 | -10/Materials | Met a group of wandering Federalists 142 | -10/Materials | Discovered new exit (range 11) 174 | -10/Materials | Entered Subcaves 174 | -10/Subcaves | Accompanied by 3 allies 175 | -10/Subcaves | Continued accompanying wandering Federalists (5) 175 | -10/Subcaves | Approached by a straggling Scientist 246 | -10/Subcaves | Shifting Twisted Machinery released Humpback 298 | -10/Subcaves | Core integrity fell below 50% 307 | -10/Subcaves | Build established: Mutant 312 | -10/Subcaves | Lost 3 allies 380 | -10/Subcaves | Learned location of Zion (-6) 380 | -10/Subcaves | Met a Zionite searching for "candidates" 446 | -10/Subcaves | Core integrity fell below 20% 449 | -10/Subcaves | Destroyed by 7M-6JN(R) with Subdweller Laser Last Messages --------------- 00287_ Sub. Optics melted. 00287_ 1I-7GF(R) destroyed. 00287_ Switching to secondary target: DP-SG9(R). 00290_ Subatomizers dissect the Aluminum Leg. 00290_ Lgt. Ion Engine destroyed. 00293_ Seismic Detector destroyed. 00293_ DP-SG9(R) destroyed. 00293_ Switching to secondary target: L3-RBL(R). 00304_ L3-RBL(R) affixes Scrap Shield Fragment to Scrap Shield. 00307_ L3-RBL(R) destroyed. 00311_ Acquired 46 matter. 00314_ Subatomizers dissect the Aluminum Leg. RH-PQX(c): "I think it's somewhere southwest of here" 00353_ TR-WV7(z): "She is not going to be happy we haven't found any suitable candidates yet." RH-PQX(c): "I think it's somewhere south of here" 00380_ TR-WV7(z): "Hey you! It's really dangerous down here, I feel that you could die at any moment. For your health and safety might I suggest a trip to Zion?" World map updated: -6/Zion. RH-PQX(c): "I think it's somewhere south of here" 00441_ Assault Rifle destroyed. Map ----- +----------------------------------------------------+ | ????????????????? #????????""" " #?? | | ?????????????????? #????????" " " ##? | | ??????????????????# #???????? """"" " * "#? | | ??????????????????# ##????????#""" ""=""## | | ??????????????????# #????????# " =!%[%!# | | ?????????????????## #????????###""# ###%=* | | ???????????????### #???????#### " ###?#%[% | | ???????????????# #???????# ##??##%=& | | ??????????????# ## #???????# #??# ! | | ???????????????????# ##??????# ##??# ## | | ???????????????????# ######### # #??####? | | ??????????????????# # # # # ##?????? | | ??????????????????## ## #### #??##?? | | ???????????????????##?## ## # ##??## ## ## | | ??????????????????????# ####### #????# | | ??????????????????????## #?????# #????# | | ??????????????????????# ##?????# ##??## ### | | ???????????? ????????# #??????# #### ##??? | | ???????????? ?????## #??????## ##?????? | | ???????????" #???# ##??????#########??????? | | ?????????? ### ##????????????????????? | | ???????????" #????????????????????? | | ????????????# ## c ##????????????????????? | | ???????????????##### ##?????????????????????? | | ?????????????????### ##?????????????????????? | | ????????????????# @ #?????????????????????? | | ???????????# #?????????????????????? | | ???????????# #?????????????????????? | | ???????????## ##?????????????????????? | | ????????????# ## #??????????????????????? | | ????????????# #?## ??????????????????????? | | ????????????## #???#R ??????????????????????? | | ?????????????##????? R ??????????????????????? | | ??????????????????? ## ??????????????????????? | | ?????????????????? #??# ??????????????????????? | | ?????????????????? ###????#??????????????????????? | | ????????????????? ??????????????????????????????? | | ???????????????? ???????????????????????????????? | | ?????????????????????????????????????????????????? | | ?????????????????????????????????????????????????? | | ?????????????????????????????????????????????????? | | ?????????????????????????????????????????????????? | | ?????????????????????????????????????????????????? | | ?????????????????????????????????????????????????? | | ?????????????????????????????????????????????????? | | ?????????????????????????????????????????????????? | | ?????????????????????????????????????????????????? | | ?????????????????????????????????????????????????? | | ?????????????????????????????????????????????????? | | ?????????????????????????????????????????????????? | +----------------------------------------------------+ Best States ------------- Heat Dissipation 25 Energy Generation 10 Energy Capacity 125 Matter Stores 300 Matter Capacity 300 Sight Range 16 Terrain Scan Density 10 Evasion (%) 50 Recoil Reduction 2 Item Schematics ----------------- None Robot Schematics ------------------ None Fabricated ------------ Nothing Repaired ---------- Nothing Studied --------- None Alien Tech Used ----------------- None Achievements -------------- Strength In Numbers Challenges ------------ None Game ------ Seed ClaymoresTacticalCapacitor Manual? 0 Play Time 00:04:04 Cumulative 58.0 hours Start 2026.01.14 @ 14:39:05 End 2026.01.14 @ 14:41:33 Sessions 1 Manual Loads 0 Difficulty Rogue Special Mode None Game No. 123 Rogue 116 Adventurer 7 Explorer 0 Win Type - Total 1 Types 1/0/0/0/0/0/0/0/0/0 Lore% 30 Gallery% 39 Achievement% 29 Wizard Run 0 Options --------- Layout 0 ASCII 0 Keyboard 1 Movement Vi Keybinds 0 Fullscreen 1 Font 18/SmallcapsGlow Map View 112x50 Zoom Use 0% Tactical HUD 1 Map Filters NONE Filters NONE Steam 1 RUN: 062df6fe-d7b8-441c-96df-9a66d57563c3